Cogmind - Beta 16 @@@ ROGUE MODE // 2025.10.25 @ 16:27:28 Player: YBOUZL Result: Destroyed by G-34 Mercenary with Small Laser Performance ------------- Evolutions (1) 500 Regions Visited (3) 600 Robots Destroyed (22) 110 Value Destroyed (498) 498 Prototype IDs (1) 20 Alien Tech Used (0) 0 Bonus (0) 0 TOTAL SCORE: 1728 Bonus ------- None Cogmind --------- Core Integrity 0/400 Matter 247/300 Energy 83/100 System Corruption 0% Temperature Critical (830) Movement Core (400) Ox7 Location -9/Storage Parts ------- > --- POWER (1) -------- (None) > --- PROPULSION (4) --- (None) > --- UTILITY (2) ------ Large Storage Unit > --- WEAPON (2) ------- Grenade Launcher > --- INVENTORY (15) --- Heat Sink Small Storage Unit Large Storage Unit Large Storage Unit Visual Processing Unit Core Shielding Core Shielding Beam Rifle Advanced Beam Cannon Advanced Beam Cannon Advanced Beam Cannon Heavy Assault Rifle Grenade Launcher Peak State ------------ > --- POWER ------------ Improved Ion Engine > --- PROPULSION ------- Aluminum Leg Aluminum Leg Aluminum Leg Aluminum Leg > --- UTILITY ---------- Large Storage Unit Propulsion Shielding > --- WEAPON ----------- Beam Rifle Heavy Assault Rifle > --- INVENTORY -------- Ion Engine Heat Sink Small Storage Unit Large Storage Unit Large Storage Unit Visual Processing Unit Core Shielding Core Shielding Core Shielding Beam Rifle Light Assault Rifle Light Assault Rifle Heavy Assault Rifle Grenade Launcher Grenade Launcher [Rating: 13] Favorites ----------- Power Ion Engine Engine Ion Engine Propulsion Aluminum Leg Leg Aluminum Leg Utility Large Storage Unit Storage Large Storage Unit Protection Propulsion Shielding Weapon Light Assault Rifle Energy Gun Beam Rifle Energy Cannon Advanced Beam Cannon Ballistic Gun Light Assault Rifle Launcher Grenade Launcher Build | -11 -10 -9 -9 ------- Run | Yrd Mat Mat Sto Slots Evolved 2 | . . 2 . Power . | . . . . Propulsion 2 | . . 2 . Utility . | . . . . Weapon . | . . . . Parts Attached 21 | 6 2 5 8 Power 3 | 1 . 1 1 Engine 3 | 1 . 1 1 Core . | . . . . Reactor . | . . . . Propulsion 4 | 2 . 2 . Treads . | . . . . Leg 4 | 2 . 2 . Wheel . | . . . . Hover . | . . . . Flight . | . . . . Utility 4 | 1 2 . 1 Device . | . . . . Storage 2 | 1 1 . . Processor . | . . . . Hackware . | . . . . Protection 2 | . 1 . 1 Artifact . | . . . . Weapon 10 | 2 . 2 6 Energy Gun 2 | . . 1 1 Energy Cannon 3 | . . . 3 Ballistic Gun 4 | 2 . 1 1 Ballistic Cannon . | . . . . Launcher 1 | . . . 1 Special Weapon . | . . . . Impact Weapon . | . . . . Slashing Weapon . | . . . . Piercing Weapon . | . . . . Special Melee Weapon . | . . . . Unidentified Prototypes 1 | . . . 1 Parts Lost 12 | . . 1 11 Power 3 | . . 1 2 Propulsion 4 | . . . 4 Utility 2 | . . . 2 Weapon 3 | . . . 3 Highest Loss Streak 6 | . . 1 6 To Critical Strikes . | . . . . Average Backups 11 | 1 6 14 13 Power . | . 1 1 . Propulsion . | . 1 1 . Utility 4 | . 1 6 7 Weapon 4 | . 3 5 6 Tool/Special . | . . . . Unused Backups 16 | . . 4 12 Power . | . . . . Propulsion 2 | . . 2 . Utility 6 | . . . 6 Weapon 8 | . . 2 6 Tool/Special . | . . . . Average Slot Usage (%) 89 | . 99 90 81 Engine 11 | . 14 10 9 Leg 30 | . 28 35 28 Storage 11 | . 14 11 11 Protection 11 | . 13 11 11 Energy Gun 3 | . . 3 6 Energy Cannon 3 | . . . 9 Ballistic Gun 16 | . 28 18 6 Peak Build Rating 13 | 6 8 13 13 Average Rating 9 | 4 7 10 11 On Entrance 6 | . 6 8 13 Avg Prop Armor Cover (%) . | . . . . Naked Turns . | . . . . Heaviest Build 34 | 12 28 34 34 Greatest Support 40 | 20 20 40 40 Greatest Overweight (x) 1 | . 1 1 1 Average Overweight (x) . | . . . . Largest Inventory Capacity 15 | 8 15 15 15 Average Capacity 13 | 7 10 15 15 Most Carried 15 | 5 12 15 15 Average Carried 11 | 1 7 14 13 Final Capacity 15 | 8 15 15 15 Final Carried 15 | 2 12 15 13 Class Distribution -------------------- 100% | Mutant Dominant Class ---------------- Mutant | -10/Materials Mutant | -9/Materials Mutant | -9/Storage Resources | -11 -10 -9 -9 ----------- Run | Yrd Mat Mat Sto Matter Collected 527 | 215 97 108 107 Remotely . | . . . . Salvage Created 624 | . 120 152 352 Parts 43 | . 4 13 26 Haulers Intercepted . | . . . . Recyclers Shooed . | . . . . Parts Field Recycled . | . . . . Retrieved Matter . | . . . . Parts Self-Destructed . | . . . . Prevented . | . . . . Parts Restored . | . . . . Kills | -11 -10 -9 -9 ------- Run | Yrd Mat Mat Sto Combat Hostiles Destroyed 21 | . 3 5 13 Guns 17 | . 3 5 9 Cannons 3 | . . . 3 AOE 1 | . . . 1 Classes Destroyed 4 | . 1 2 1 Builder 1 | . . . 1 Swarmer 12 | . . 3 9 Grunt 5 | . 3 . 2 Sentry 4 | . . 2 2 Best Kill Streak 6 | . 3 3 6 Combat Bots Only 6 | . 3 3 6 Max Kills in Single Turn 2 | . 1 1 2 Gunslinging . | . . . . Exploded 1 | . . . 1 Melee . | . . . . Uniques/NPCs Destroyed . | . . . . Combat | -11 -10 -9 -9 -------- Run | Yrd Mat Mat Sto Hostile Shots Fired 195 | . 6 37 152 Missed 47 | . 2 9 36 Hits 148 | . 4 28 116 Projectile 148 | . 4 28 116 Critical Strikes 2 | . . . 2 Actively Blocked 1 | . . . 1 Damage Taken 1687 | . 41 324 1322 Core 432 | . 31 57 344 Absorbed by Shields . | . . . . Redirected to Shielding 80 | . 3 32 45 Regen/Repaired (Parts) 79 | . . . 79 Core Remaining (%) 93 | 100 87 . . Volleys Fired 60 | . 6 18 36 Largest 2 | . 2 2 2 Hottest 136 | . 40 79 136 Shots Fired 112 | . 12 36 64 Gun 83 | . 12 36 35 Cannon 27 | . . . 27 Launcher 2 | . . . 2 Special . | . . . . Kinetic 58 | . 12 27 19 Thermal 52 | . . 9 43 Explosive 2 | . . . 2 Electromagnetic . | . . . . Robot Hit Streak 10 | . 5 10 7 Robot Miss Streak 4 | . 1 3 4 Penetration Max . | . . . . Secondary Targets 2 | . . 1 1 Max Gunslinging Chain 1 | . . 1 1 Shots Hit Robots 67 | . 9 25 33 Core Hits 29 | . 6 7 16 Critical Kills 1 | . 1 . . Critical Parts Destroyed . | . . . . Critical Strikes 1 | . 1 . . Destroy 1 | . 1 . . Melee Attacks . | . . . . Impact . | . . . . Slashing . | . . . . Piercing . | . . . . Sneak Attacks . | . . . . Combat Hostiles . | . . . . Follow-up Attacks . | . . . . Damage Inflicted 1060 | . 70 294 696 Guns 627 | . 70 294 263 Cannons 307 | . . . 307 Explosions 119 | . . . 119 Melee . | . . . . Ramming 7 | . . . 7 Kinetic 440 | . 70 223 147 Thermal 494 | . . 71 423 Explosive 119 | . . . 119 Electromagnetic . | . . . . Impact . | . . . . Slashing . | . . . . Piercing . | . . . . Highest Corruption . | . . . . Average Corruption . | . . . . Corruption Purged . | . . . . Corruption Blocked . | . . . . Overload Shots . | . . . . Overflow Damage 4 | . . . 4 Projectiles . | . . . . Explosions 4 | . . . 4 Melee . | . . . . Knockbacks . | . . . . Impact . | . . . . Kinetic . | . . . . Secondary . | . . . . Self-Inflicted Damage 32 | . . . 32 Shots 1 | . . . 1 Rammed . | . . . . Targets Rammed 3 | . . . 3 Kicked 3 | . . . 3 Crushed . | . . . . Highest Temperature 895 | . 6 45 895 Average Temperature 217 | . 6 17 279 Received Heat Transfer 348 | . 24 54 270 Effects 12 | . . . 12 Shutdowns 2 | . . . 2 Interference 2 | . . . 2 Matter Decay 1 | . . . 1 Short Circuit 2 | . . . 2 Damage (minor) 1 | . . . 1 Damage (major) 1 | . . . 1 Damage (core) 3 | . . . 3 Siege Activations . | . . . . Martial Activations . | . . . . Shielding Activations . | . . . . Robots Disrupted . | . . . . Combat Hostiles . | . . . . Robots Corrupted . | . . . . Combat Hostiles . | . . . . Parts Fried . | . . . . Impact Corruptions . | . . . . Robots Melted . | . . . . Combat Hostiles . | . . . . Parts Melted 3 | . . 1 2 Heat Transferred 1036 | . . 185 851 Parts Sabotaged . | . . . . Parts Stolen . | . . . . Parts Stripped . | . . . . Power Chain Reactions . | . . . . Alert | -11 -10 -9 -9 ------- Run | Yrd Mat Mat Sto Maximum Alert Level 1 | . . . 1 Low Security (%) 99 | 100 100 100 99 Level 1 . | . . . . Level 2 . | . . . . Level 3 . | . . . . Level 4 . | . . . . Level 5 . | . . . . High Security . | . . . . Max Security . | . . . . Peak Influence 201 | . 75 75 201 Initial 8 | . . 5 8 Average 56 | . 17 29 116 Influence Increases 711 | . 85 147 479 Destroy 0b10 Robot/C 420 | . 60 100 260 Destroy 0b10 Robot/NC 5 | . . . 5 Destroy Leader 90 | . 10 30 50 Disable Machine 15 | . . . 15 Destroy Structure 16 | . . 2 14 Lose Combat Pursuer 165 | . 15 15 135 Influence Decreases 530 | . 70 141 319 Entered New Map 23 | . . 10 13 Time Decay 391 | . 70 125 196 Lost Part 116 | . . 6 110 Squads Dispatched 5 | . 1 . 4 Investigation 1 | . 1 . . Extermination . | . . . . Reinforcement . | . . . . Assault . | . . . . Garrison 4 | . . . 4 Intercept . | . . . . Searches Triggered . | . . . . Construction Impeded . | . . . . Haulers Reinforced . | . . . . Active Scanning Responses . | . . . . Cargo Convoy Interrupts . | . . . . Stealth | -11 -10 -9 -9 --------- Run | Yrd Mat Mat Sto Distress Signals 1 | . . . 1 Communications Jammed . | . . . . Distress Signals . | . . . . Times Spotted 31 | . 3 6 22 Peak Tracking Total 9 | . 3 3 9 Tactical Retreats 5 | . 1 1 3 Traps | -11 -10 -9 -9 ------- Run | Yrd Mat Mat Sto Traps Triggered 1 | . 1 . . Indirectly . | . . . . Trap Hack Attempts . | . . . . Triggered . | . . . . Disarmed . | . . . . Reprogrammed . | . . . . Reused . | . . . . Traps Extracted . | . . . . Installed . | . . . . Triggered . | . . . . Machines | -11 -10 -9 -9 ---------- Run | Yrd Mat Mat Sto Machines Disabled 1 | . . . 1 Max in Single Turn 1 | . . . 1 Machines Repaired . | . . . . Machines Dismantled . | . . . . Machines Sabotaged . | . . . . Overloaded Fab Kills . | . . . . Hacking | -11 -10 -9 -9 --------- Run | Yrd Mat Mat Sto Machines Accessed 2 | . . . 2 Terminals 1 | . . . 1 Fabricators . | . . . . Repair Stations 1 | . . . 1 Recycling Units . | . . . . Scanalyzers . | . . . . Garrison Access . | . . . . Total Hacks 3 | . . . 3 Successful 3 | . . . 3 Failed . | . . . . Catastrophic . | . . . . Database Lockouts . | . . . . Manual . | . . . . Terminals 1 | . . . 1 Fabricators . | . . . . Repair Stations 2 | . . . 2 Recycling Units . | . . . . Scanalyzers . | . . . . Garrison Access . | . . . . Terminal Hacks 1 | . . . 1 Open Door 1 | . . . 1 Fabricator Hacks . | . . . . Repair Station Hacks 2 | . . . 2 Scan Component 1 | . . . 1 Repair 1 | . . . 1 Recycling Unit Hacks . | . . . . Scanalyzer . | . . . . Garrison Access Hacks . | . . . . Unauthorized Hacks . | . . . . Terminals . | . . . . Fabricators . | . . . . Repair Stations . | . . . . Recycling Units . | . . . . Scanalyzers . | . . . . Garrison Access . | . . . . Data Cores Recovered . | . . . . Used . | . . . . Hacking Detections 1 | . . . 1 Full Trace Events . | . . . . Feedback Events . | . . . . Feedback Blocked . | . . . . Robot Schematics Acquired . | . . . . Robots Built . | . . . . Authchips . | . . . . Time . | . . . . Total Robot Build Rating . | . . . . Part Schematics Acquired . | . . . . Parts Built . | . . . . Authchips . | . . . . Time . | . . . . Total Part Build Rating . | . . . . Part Studies Acquired . | . . . . Parts Repaired 1 | . . . 1 Time 26 | . . . 26 Parts Recycled . | . . . . Recycled Matter . | . . . . Retrieved Matter . | . . . . Retrieved Components . | . . . . Parts Scanalyzed . | . . . . Part Schematics Acquired . | . . . . Parts Damaged . | . . . . Bothacking | -11 -10 -9 -9 ------------ Run | Yrd Mat Mat Sto Used RIF Installer . | . . . . Robots Hacked . | . . . . Non-combat . | . . . . Combat . | . . . . Robot Hacks Applied . | . . . . Relay Couplers Released . | . . . . Fabnet Peak Effective % . | . . . . Robots Rewired . | . . . . Allies Hacked . | . . . . Hacks Repelled . | . . . . Allies | -11 -10 -9 -9 -------- Run | Yrd Mat Mat Sto Total Allies . | . . . . Largest Group . | . . . . Highest-Rated Group . | . . . . Highest-Rated Ally . | . . . . Total Orders . | . . . . Ally Attacks . | . . . . Total Damage . | . . . . Kills . | . . . . Allies Corrupted . | . . . . Allies Melted . | . . . . Intel | -11 -10 -9 -9 ------- Run | Yrd Mat Mat Sto Active Infowar (turns) . | . . . . Robot Analysis Total . | . . . . Derelict Logs Recovered . | . . . . Drone Launches . | . . . . Drone Recoveries . | . . . . Exploration | -11 -10 -9 -9 ------------- Run | Yrd Mat Mat Sto Turns Passed 1098 | 69 322 295 412 Spaces Moved 553 | 49 208 133 163 Core 9 | 9 . . . Treads . | . . . . Legs 544 | 40 208 133 163 Wheels . | . . . . Hover . | . . . . Flight . | . . . . Fastest Speed 50 | 50 120 120 120 Average Speed 142 | 107 137 144 157 Slowest Speed 190 | 120 190 190 190 Overloaded Moves . | . . . . Propulsion Burnouts . | . . . . Robots Hopped . | . . . . Potential Cave-ins . | . . . . Cave-ins Triggered . | . . . . Exploration Rate (%) 15 | 4 28 11 19 Regions Visited 3 Branch Regions 1 Pre-discovered Areas . | . . . . Known Exits Taken . | . . . . Unknown Exits Taken 3 | 1 1 1 . Scrap Searched . | . . . . Spaces Dug . | . . . . Terrain Destroyed 10 | . . . 10 Melee . | . . . . Projectile . | . . . . AOE 10 | . . . 10 Terrain Rammed . | . . . . Walls Destroyed . | . . . . Machines Disabled . | . . . . Actions | -11 -10 -9 -9 --------- Run | Yrd Mat Mat Sto Total 760 | 66 235 204 255 Wait 75 | . 9 34 32 Move 550 | 48 207 132 163 Hop . | . . . . Pick Up 36 | 8 11 10 7 Fast Attach 2 | . . 1 1 Attach 17 | 8 1 2 6 Detach 2 | 2 . . . Swap 5 | . 1 2 2 Drop 10 | . . 5 5 Fire 60 | . 6 18 36 Melee . | . . . . Ram . | . . . . Kick 3 | . . . 3 Crush . | . . . . Escape Stasis . | . . . . Rewire . | . . . . Trap . | . . . . Miscellaneous . | . . . . Route ------- -11/Scrapyard -10/Materials -9/Materials -9/Storage History --------- Turn | Location | Event 4 | -11/Scrapyard | Discovered new exit (range 16) 70 | -11/Scrapyard | Entered Materials 309 | -10/Materials | Build established: Mutant 317 | -10/Materials | Discovered new exit (range 10) 392 | -10/Materials | Entered another Materials area 392 | -9/Materials | Evolved 2 slots: Propulsion x2 561 | -9/Materials | Discovered new exit (range 16) 687 | -9/Materials | Entered Storage 772 | -9/Storage | Garrison activated, responded to threat 865 | -9/Storage | Lost 6 parts (1p2n1u2w) 1012 | -9/Storage | Repaired Aluminum Leg 1082 | -9/Storage | Core integrity fell below 50% 1086 | -9/Storage | Garrison activated, responded to threat 1093 | -9/Storage | Core integrity fell below 20% 1099 | -9/Storage | Destroyed by G-34 Mercenary with Small Laser Last Messages --------------- 01089_ Adv. Beam Cannon destroyed. 01090_ Overheating: Core damaged (-76). 01091_ R-06 Scavenger inserts Aluminum Leg into recycling unit. 01094_ Adv. Beam Cannon broken. 01094_ Overheating: Short circuit. 01094_ R-06 Scavenger collects Sml. Laser. 01094_ Dropped Broken Adv. Beam Cannon. 01095_ G-47 Trooper heat spikes uncontrollably. 01095_ Core Shielding destroyed. 01096_ G-47 Trooper overheating. 01097_ Overheating: Lrg. Storage Unit damaged (-190). 01098_ Overheating: Core damaged (-40). 01098_ Recycling Unit disabled. 01098_ Aluminum Leg destroyed. 01098_ Destroyed Aluminum Leg. 01098_ Aluminum Leg melted. 01098_ G-47 Trooper destroyed. 01098_ U-05 Engineer destroyed. Map ----- +----------------------------------------------------+ | ????#%########??????????????????????? | | ????# # """ ##?????????????????????? | | ????# + """ "#?????????????????????? | | ????# # """ T#?????????????????????? | | ????# # "#?????????????????????? | | ????# # ##?????????????????????? | | ????# # #??????????????????????? | | ????# ##+#####??????????????????????? | | ????#% ########???????????????????? | | ????# # ??????????????????? | | ????# # #????????????????? | | ????# # """ #????????????????? | | ????# a # """ +????????????????? | | ????# #[""" "" #????????????????? | | ????# %%+%% G" #????????????????? | | ????# #^ "" #????????????????? | | ????# # #????????????????? | | ????# ##+###/####????????????????? | | ????# #??? ??????????????????? | | ????# #???? ????????????????? | | ????# #????? ? ?????????? | | ????# =*#?????? ????????? | | ????# *%### ????????? | | ????# %[!%! ????????? | | ????# # !r%#### #????????????? | | ????# # %@] #????????????????????? | | ????# g ! "# ???????????????? | | ?#### Y" ??? #??????????????? | | ?#T ## ""# ???????????????????? | | ?## ## # !??????????????????? | | ??# ## #? !! ????????????????? | | ??# ###" "###??!!Y ???????????????? | | ??#####?#"R"#?????"# #??????????????? | | ????????#"""#??????#?#??????????????? | | ????????#####???????????????????????? | | ????????????????????????????????????? | | ????????????????????????????????????? | | ????????????????????????????????????? | | ????????????????????????????????????? | | ????????????????????????????????????? | | ????????????????????????????????????? | | ????????????????????????????????????? | | ????????????????????????????????????? | | ????????????????????????????????????? | | ????????????????????????????????????? | | ????????????????????????????????????? | | ????????????????????????????????????? | | ????????????????????????????????????? | | ????????????????????????????????????? | | ????????????????????????????????????? | +----------------------------------------------------+ Best States ------------- Heat Dissipation 28 Energy Generation 12 Energy Capacity 265 Matter Stores 300 Matter Capacity 300 Sight Range 16 Terrain Scan Density 10 Core Shielding 20 Propulsion Shielding 33 Evasion (%) 55 Item Schematics ----------------- None Robot Schematics ------------------ None Fabricated ------------ Nothing Repaired ---------- Aluminum Leg | 12% | -9/Storage Studied --------- None Alien Tech Used ----------------- None Achievements -------------- DATA ERROR: Steam Global Achievement% For Emergencies Only Organ Harvest That Tickles There's More Where That Came From Well Done Challenges ------------ None Game ------ Seed QuantumCoreNanovents Manual? 0 Play Time 00:21:12 Cumulative 17.9 hours Start 2025.10.25 @ 15:58:31 End 2025.10.25 @ 16:27:28 Sessions 1 Manual Loads 0 Difficulty Rogue Special Mode None Game No. 37 Rogue 37 Adventurer 0 Explorer 0 Win Type - Total 0 Types 0/0/0/0/0/0/0/0/0/0 Lore% 12 Gallery% 21 Achievement% 11 Wizard Run 0 Options --------- Layout 1 ASCII 0 Keyboard 0 Movement Arrows Keybinds 0 Fullscreen 1 Font 24/Smallcaps Map View 50x40 Zoom Use 0% Tactical HUD 1 Map Filters NONE Filters NONE Steam 1 RUN: 6b981a21-9fac-4cb8-ba8c-3419e1f59976